bitfinex/quotes_BTCUSD_20250526
["timestamp","ask_amount","ask_price","bid_price","bid_amount"]
[1748302031760,0.35134201,109210.0,109200.0,0.67420861]
[1748302031974,0.35134201,109210.0,109200.0,1.29224861]
[1748302032172,0.35134201,109210.0,109200.0,0.67420861]
[1748302032390,0.35134201,109210.0,109200.0,1.29224861]
[1748302033589,0.35134201,109210.0,109200.0,1.27762939]
[1748302037596,0.35134201,109210.0,109200.0,1.27578939]
[1748302039894,0.35134201,109210.0,109200.0,1.29040861]
[1748302040540,0.35134201,109210.0,109200.0,1.58531828]
[1748302041699,0.33524201,109210.0,109200.0,1.29040861]
[1748302042306,0.33524201,109210.0,109200.0,1.58531828]
[1748302045677,0.33524201,109210.0,109200.0,1.57435231]
[1748302048037,0.33524201,109210.0,109200.0,1.27944264]
[1748302049960,0.33524201,109210.0,109200.0,1.57444209]
[1748302051121,0.33524201,109210.0,109200.0,0.95824209]
[1748302051328,0.33524201,109210.0,109200.0,1.57444209]
[1748302051633,0.33524201,109210.0,109200.0,0.98453297]
[1748302051840,0.35044201,109210.0,109200.0,0.95824209]
[1748302052060,0.35044201,109210.0,109200.0,1.29984209]
[1748302052287,0.71329338,109210.0,109200.0,0.02833297]
[1748302052706,0.71329338,109210.0,109200.0,0.01371375]
[1748302052970,0.36498286,109210.0,109200.0,0.01371375]
[1748302053387,0.36398286,109210.0,109200.0,0.01071375]
[1748302053604,0.36498286,109210.0,109200.0,0.01271375]
[1748302053824,0.36398286,109210.0,109200.0,0.01071375]
[1748302054048,0.36498286,109210.0,109200.0,0.01171375]
[1748302054260,0.45450437,109210.0,109200.0,0.01171375]
[1748302054475,0.36498286,109210.0,109200.0,0.01171375]
[1748302055829,0.36498286,109210.0,109200.0,0.003]
[1748302062344,0.33524201,109210.0,109200.0,0.63972457]
[1748302062558,0.35044201,109210.0,109200.0,0.34464]
[1748302062968,0.35044201,109210.0,109200.0,0.01176476]
[1748302065664,0.41833882,109210.0,109200.0,0.01176476]
[1748302070680,0.36498286,109210.0,109200.0,0.01176476]
[1748302070891,0.33468286,109210.0,109200.0,0.30684933]
[1748302071358,0.32014201,109210.0,109200.0,0.30684933]
[1748302071828,0.33624201,109210.0,109200.0,0.30684933]
[1748302072031,0.35234201,109210.0,109200.0,0.30684933]
[1748302077817,0.33624201,109210.0,109200.0,0.30684933]
[1748302080476,0.33624201,109210.0,109200.0,0.01176476]
[1748302080682,0.33624201,109210.0,109200.0,0.30684933]
[1748302081755,0.32014201,109210.0,109200.0,0.30684933]
[1748302083606,0.33544201,109210.0,109200.0,0.64800933]
[1748302088401,0.33544201,109210.0,109200.0,0.30684933]
[1748302090146,0.33544201,109210.0,109200.0,0.30676043]
[1748302096720,0.33544201,109210.0,109200.0,0.31774092]
[1748302102369,0.32014201,109210.0,109200.0,0.61273659]
[1748302102593,0.32014201,109210.0,109200.0,0.98503659]
[1748302103668,0.32014201,109210.0,109200.0,0.97237532]
[1748302106470,0.32014201,109210.0,109200.0,0.98335034]
[1748302108899,0.32014201,109210.0,109200.0,1.58307034]
[1748302109541,0.32014201,109210.0,109200.0,1.56845112]
[1748302110500,0.32014201,109210.0,109200.0,0.95273112]
[1748302110770,0.32014201,109210.0,109200.0,1.56845112]
[1748302112379,0.32014201,109210.0,109200.0,0.95273112]
[1748302112605,0.35114201,109210.0,109200.0,0.63841978]
[1748302112809,0.35114201,109210.0,109200.0,0.93341545]
[1748302113398,0.33584201,109210.0,109200.0,0.93341545]
[1748302114571,0.33584201,109210.0,109200.0,1.22841112]
[1748302117526,0.33584201,109210.0,109200.0,0.61273112]
[1748302117739,0.35094201,109210.0,109200.0,1.22841112]
[1748302118068,0.33584201,109210.0,109200.0,1.22841112]
[1748302119809,0.41918882,109210.0,109200.0,0.65877545]
[1748302121565,0.41918882,109210.0,109200.0,0.93341545]
[1748302121970,0.36578286,109210.0,109200.0,0.93341545]
[1748302122931,0.36578286,109210.0,109200.0,0.92244043]
[1748302123357,0.36478286,109210.0,109200.0,0.92144043]
[1748302123641,0.36578286,109210.0,109200.0,0.92244043]
[1748302124268,0.36478286,109210.0,109200.0,0.92044043]
[1748302124473,0.36578286,109210.0,109200.0,0.92144043]
[1748302130051,0.36578286,109210.0,109200.0,0.30576043]
[1748302130252,0.71566857,109210.0,109200.0,0.01076476]
[1748302130689,1.05662857,109210.0,109200.0,0.01076476]
[1748302131245,0.36578286,109210.0,109200.0,0.01076476]
[1748302131468,0.36578286,109210.0,109200.0,0.30576043]
[1748302131683,0.36578286,109210.0,109200.0,0.002]
[1748302134404,0.39669006,109210.0,109200.0,0.002]
[1748302135377,0.36559006,109210.0,109200.0,0.59199134]
[1748302135575,0.36559006,109210.0,109200.0,0.29699567]
[1748302136953,0.36559006,109210.0,109200.0,0.30576678]
[1748302138301,0.33468286,109210.0,109200.0,0.30576678]
[1748302139069,0.35058286,109210.0,109200.0,0.30576678]
[1748302141371,0.33468286,109210.0,109200.0,0.30576678]
[1748302142152,0.32014201,109210.0,109200.0,0.63236245]
[1748302142798,0.32014201,109210.0,109200.0,0.97332245]
[1748302143264,0.32014201,109210.0,109200.0,0.98429747]
[1748302151057,0.32014201,109210.0,109200.0,1.32429747]
[1748302154824,0.32014201,109210.0,109200.0,1.30919747]
[1748302156939,0.32014201,109210.0,109200.0,1.32439747]
[1748302161278,0.32014201,109210.0,109200.0,1.30919747]
[1748302165889,0.32014201,109210.0,109200.0,0.95173747]
[1748302166120,0.32014201,109210.0,109200.0,1.56717747]
[1748302167295,0.32014201,109210.0,109200.0,1.58179669]
[1748302169648,0.33564201,109210.0,109200.0,1.58179669]
[1748302171785,0.32014201,109210.0,109200.0,1.58179669]
[1748302172488,0.32014201,109210.0,109200.0,1.57082167]
[1748302176600,0.33514201,109210.0,109200.0,1.29622167]
[1748302176807,0.35164201,109210.0,109200.0,1.275826]
[1748302177639,0.35164201,109210.0,109200.0,1.001226]
[1748302177867,0.35164201,109210.0,109200.0,1.275826]
[1748302178083,0.35164201,109210.0,109200.0,1.28680679]
[1748302180274,0.35164201,109210.0,109200.0,0.37721112]
[1748302180275,0.41965882,109210.0,109200.0,0.37721112]
[1748302180494,0.41965882,109210.0,109200.0,0.03637112]
[1748302180710,0.41965882,109210.0,109200.0,0.60596679]
[1748302181572,0.41965882,109210.0,109200.0,0.59134757]
[1748302182128,0.35164201,109210.0,109200.0,0.59134757]
[1748302182349,0.32014201,109210.0,109200.0,0.88634324]
[1748302184131,0.32014201,109210.0,109200.0,0.61174324]
[1748302184343,0.33564201,109210.0,109200.0,0.88634324]
[1748302184553,0.35124201,109210.0,109200.0,0.88634324]
[1748302186376,0.32014201,109210.0,109200.0,0.88634324]
[1748302190550,0.33604201,109210.0,109200.0,1.22706324]
[1748302192241,0.35214201,109210.0,109200.0,1.22706324]
[1748302192636,0.35214201,109210.0,109200.0,0.61174324]
[1748302192837,0.35214201,109210.0,109200.0,1.22710324]
[1748302194271,0.35214201,109210.0,109200.0,0.61174324]
[1748302194425,0.35214201,109210.0,109200.0,1.22710324]
[1748302195398,0.33604201,109210.0,109200.0,1.22710324]
[1748302200348,0.32014201,109210.0,109200.0,1.22710324]
[1748302200704,0.33564201,109210.0,109200.0,1.22710324]
[1748302201131,0.32014201,109210.0,109200.0,1.22710324]
[1748302201896,0.32014201,109210.0,109200.0,1.89349891]
[1748302202548,0.12785168,109210.0,109200.0,3.04231051]
[1748302202764,0.04746262,109210.0,109200.0,3.0606246]
[1748302202992,0.24890928,109210.0,109200.0,3.04964397]
[1748302203198,0.24890928,109210.0,109200.0,2.94474897]
[1748302203677,0.25806536,109210.0,109200.0,2.95390597]
[1748302203944,0.25706536,109210.0,109200.0,2.95290597]
[1748302204174,0.25706536,109210.0,109200.0,2.6586021]
[1748302204393,0.25806536,109210.0,109200.0,2.66775902]
[1748302204679,0.07393195,109210.0,109200.0,2.67609083]
[1748302205124,0.07493195,109210.0,109200.0,2.67709083]
[1748302205306,0.25806536,109210.0,109200.0,2.66793391]
[1748302205503,0.25706536,109210.0,109200.0,2.66693391]
[1748302205742,0.23875295,109210.0,109200.0,2.63946266]
[1748302205968,0.23975295,109210.0,109200.0,2.65062]
[1748302206170,0.23059645,109210.0,109200.0,2.65062]
[1748302206856,0.23059645,109210.0,109200.0,2.678094]
[1748302208084,0.23059645,109210.0,109200.0,2.68725125]
[1748302208555,0.22143987,109210.0,109200.0,2.66893666]
[1748302208813,0.22143987,109210.0,109200.0,2.678094]
[1748302209593,0.22143987,109210.0,109200.0,3.073494]
[1748302209807,0.22143987,109210.0,109200.0,2.458134]
[1748302210025,0.22143987,109210.0,109200.0,3.06425666]
[1748302210261,0.2122832,109210.0,109200.0,3.06425666]
[1748302210648,0.2122832,109210.0,109200.0,2.87194906]
[1748302210777,0.2122832,109210.0,109200.0,2.88110656]
[1748302211989,0.2122832,109210.0,109200.0,2.89570999]
[1748302213696,0.2122832,109210.0,109200.0,2.88655249]
[1748302216810,0.2122832,109210.0,109200.0,2.27127249]
[1748302216943,0.2122832,109210.0,109200.0,2.88651249]
[1748302218887,0.2122832,109210.0,109200.0,2.85903849]
[1748302219118,0.2122832,109210.0,109200.0,3.05134617]
[1748302219330,0.2122832,109210.0,109200.0,3.06050359]
[1748302219763,0.2122832,109210.0,109200.0,3.05134617]
[1748302221058,0.2122832,109210.0,109200.0,2.86819599]
[1748302221266,0.2122832,109210.0,109200.0,2.85359256]
[1748302221473,0.2122832,109210.0,109200.0,2.84443506]
[1748302222582,0.2122832,109210.0,109200.0,2.22919506]
[1748302222813,0.2122832,109210.0,109200.0,2.84427506]
[1748302224031,0.2122832,109210.0,109200.0,2.56971506]
[1748302224227,0.2122832,109210.0,109200.0,2.84427506]
[1748302224689,0.2122832,109210.0,109200.0,3.03658274]
[1748302224908,0.2122832,109210.0,109200.0,3.04574016]
[1748302225344,0.2122832,109210.0,109200.0,3.03640835]
[1748302225959,0.2122832,109210.0,109200.0,3.33128289]
[1748302230453,0.22143987,109210.0,109200.0,3.34044023]
[1748302230747,0.04746236,109210.0,109200.0,3.35875432]
[1748302231029,0.24890818,109210.0,109200.0,3.3587544]
[1748302231264,0.24890818,109210.0,109200.0,3.3862284]
[1748302232651,0.24890818,109210.0,109200.0,3.3770714]
[1748302232921,0.23059611,109210.0,109200.0,3.18689272]
[1748302233149,0.23059611,109210.0,109200.0,3.19604989]
[1748302233577,0.04746228,109210.0,109200.0,3.20520681]
[1748302233790,0.05661819,109210.0,109200.0,3.20520681]
[1748302234183,0.06577469,109210.0,109200.0,3.20520681]
[1748302234421,0.2489081,109210.0,109200.0,3.19604989]
[1748302234612,0.23975219,109210.0,109200.0,3.17984989]
[1748302235440,0.23975219,109210.0,109200.0,3.18900697]
[1748302235581,0.23975219,109210.0,109200.0,3.20430697]
[1748302238733,0.24890886,109210.0,109200.0,2.31974929]
[1748302238969,0.24890886,109210.0,109200.0,3.20430697]
[1748302241469,0.24890886,109210.0,109200.0,3.19514989]
[1748302242539,0.24890886,109210.0,109200.0,3.17984989]
[1748302246664,0.2397527,109210.0,109200.0,3.17984989]
[1748302246851,0.2397527,109210.0,109200.0,2.90528989]
[1748302247050,0.2397527,109210.0,109200.0,3.17984989]
[1748302247224,0.2397527,109210.0,109200.0,3.20480689]
[1748302248522,0.20680863,109210.0,109200.0,3.20480689]
[1748302248733,0.20680863,109210.0,109200.0,3.19564989]
[1748302248911,0.20680863,109210.0,109200.0,3.17984989]
[1748302249120,0.20144658,109210.0,109200.0,3.17984989]
[1748302252315,0.20144658,109210.0,109200.0,2.89613272]
[1748302252522,0.19229008,109210.0,109200.0,2.54041272]
[1748302252742,0.30427897,109210.0,109200.0,0.35177111]
[1748302253000,0.30427897,109210.0,109200.0,1.55639623]
[1748302253201,0.30427897,109210.0,109200.0,1.21639623]
[1748302253425,0.30427897,109210.0,109200.0,0.94147623]
[1748302253643,0.30427897,109210.0,109200.0,1.27617604]
[1748302253848,0.30427897,109210.0,109200.0,1.5710286]
[1748302254040,0.30427897,109210.0,109200.0,1.2763276]
[1748302254244,0.30427897,109210.0,109200.0,0.9363276]
[1748302254500,0.30427897,109210.0,109200.0,1.2763276]
[1748302254968,0.30427897,109210.0,109200.0,1.28729832]
[1748302255191,0.30427897,109210.0,109200.0,1.27266595]
[1748302258022,0.30427897,109210.0,109200.0,1.26169523]
[1748302259776,0.30427897,109210.0,109200.0,0.96669111]
[1748302259963,0.30427897,109210.0,109200.0,1.26169523]
[1748302260094,0.30427897,109210.0,109200.0,1.26173523]
[1748302260531,0.30427897,109210.0,109200.0,0.35221111]
[1748302260735,0.30427897,109210.0,109200.0,0.30677523]
[1748302260962,0.30427897,109210.0,109200.0,0.92181523]
[1748302264157,0.30427897,109210.0,109200.0,1.21681935]
[1748302264851,0.27267897,109210.0,109200.0,1.55681935]
[1748302265297,0.27267897,109210.0,109200.0,1.56779007]
[1748302265534,0.28857897,109210.0,109200.0,1.56779007]
[1748302265974,0.27267897,109210.0,109200.0,1.56779007]
[1748302269629,0.28817897,109210.0,109200.0,1.56779007]
[1748302269884,0.30347897,109210.0,109200.0,0.65774595]
[1748302270099,0.30347897,109210.0,109200.0,1.27278595]
[1748302273153,0.30347897,109210.0,109200.0,0.99818595]
[1748302273382,0.30347897,109210.0,109200.0,1.27278595]
[1748302276010,0.30347897,109210.0,109200.0,1.56768017]
[1748302276456,0.30347897,109210.0,109200.0,0.97778183]
[1748302276897,0.30347897,109210.0,109200.0,1.56768017]
[1748302278792,0.30347897,109210.0,109200.0,0.95264017]
[1748302278932,0.30347897,109210.0,109200.0,1.56768017]
[1748302279171,0.28817897,109210.0,109200.0,1.56768017]
[1748302279371,0.27267897,109210.0,109200.0,1.56768017]
[1748302280391,0.27267897,109210.0,109200.0,1.58231254]
[1748302281423,0.28877897,109210.0,109200.0,1.58231254]
[1748302281846,0.27267897,109210.0,109200.0,1.58231254]
[1748302282537,0.27267897,109210.0,109200.0,2.63931799]
[1748302282762,0.27267897,109210.0,109200.0,2.30348199]
[1748302282988,0.27267897,109210.0,109200.0,1.91192882]
[1748302283434,0.27267897,109210.0,109200.0,1.73130682]
[1748302283655,0.27267897,109210.0,109200.0,1.71667445]
[1748302283886,0.27267897,109210.0,109200.0,1.57190945]
[1748302284097,0.20143032,109220.0,109210.0,0.56378991]
[1748302284329,0.20142796,109220.0,109210.0,1.7349975]
[1748302284559,0.20142796,109220.0,109210.0,1.72584125]
[1748302284784,0.19227247,109220.0,109210.0,1.72584125]
[1748302285454,0.19427247,109220.0,109210.0,1.72984125]
[1748302286111,0.19427247,109220.0,109210.0,1.34276901]
[1748302286320,0.19427247,109220.0,109210.0,1.35154012]
[1748302288382,0.19427247,109220.0,109210.0,1.33552112]
[1748302288600,0.2746622,109220.0,109210.0,1.26240321]
[1748302288816,0.2903622,109220.0,109210.0,1.26240321]
[1748302289021,0.2903622,109220.0,109210.0,0.64756321]
[1748302289230,0.3066622,109220.0,109210.0,1.26240321]
[1748302290057,0.3066622,109220.0,109210.0,1.27700008]
[1748302290305,0.3066622,109220.0,109210.0,0.66244008]
[1748302290523,0.3066622,109220.0,109210.0,0.93700008]
[1748302290754,0.3066622,109220.0,109210.0,1.27700008]
[1748302290985,0.3066622,109220.0,109210.0,1.27335194]
[1748302291424,0.3066622,109220.0,109210.0,0.99879194]
[1748302291888,0.3066622,109220.0,109210.0,1.27335194]
[1748302292320,0.3066622,109220.0,109210.0,1.26240321]
[1748302293038,0.3066622,109220.0,109210.0,0.98784321]
[1748302293248,0.3066622,109220.0,109210.0,1.26240321]
[1748302294074,1.27973792,109220.0,109210.0,0.00877111]
[1748302294298,1.11250792,109220.0,109210.0,0.00877111]
[1748302294503,0.52328991,109210.0,109200.0,0.0255456]
[1748302294748,1.03583808,109210.0,109200.0,0.0255456]
[1748302295014,0.2160239,109190.0,109180.0,0.002]
[1748302295271,0.95140946,109190.0,109180.0,0.00249971]
[1748302295939,0.34553163,109190.0,109180.0,0.00249971]
[1748302296144,0.96037163,109190.0,109180.0,0.00249971]
[1748302296706,1.04989314,109190.0,109180.0,0.00249971]
[1748302297088,1.05289314,109190.0,109180.0,0.00249971]
[1748302297283,1.05297314,109190.0,109180.0,0.00249971]
[1748302297686,1.06968218,109190.0,109180.0,0.00249971]
[1748302300211,0.45476218,109190.0,109180.0,0.00249971]
[1748302300480,1.06976218,109190.0,109180.0,0.00249971]
[1748302301375,1.36455428,109190.0,109180.0,0.00249971]
[1748302301612,0.74955428,109190.0,109180.0,0.00249971]
[1748302301840,0.74955428,109190.0,109180.0,0.29729181]
[1748302301841,0.61637765,109190.0,109180.0,0.29729181]
[1748302302115,0.34173765,109190.0,109180.0,0.29729181]
[1748302302327,0.61637765,109190.0,109180.0,0.29729181]
[1748302302765,0.61637765,109190.0,109180.0,0.00249971]
[1748302303497,0.29702861,109190.0,109180.0,0.66759181]
[1748302308819,0.29702861,109190.0,109180.0,0.65249181]
[1748302309023,0.29702861,109190.0,109180.0,0.63729181]
[1748302310862,0.37386981,109190.0,109180.0,0.34249971]
[1748302311092,0.32952861,109190.0,109180.0,0.34249971]
[1748302311514,0.40241823,109190.0,109180.0,0.34249971]
[1748302311725,0.40241823,109190.0,109180.0,0.63729181]
[1748302314037,0.40241823,109190.0,109180.0,0.34249971]
[1748302314272,0.40241823,109190.0,109180.0,0.63729181]
[1748302314712,0.40241823,109190.0,109180.0,0.34249971]
[1748302315357,0.48979839,109190.0,109180.0,0.34249971]
[1748302315616,0.71175118,109190.0,109180.0,0.00249971]
[1748302315819,0.41695908,109190.0,109180.0,0.00249971]
[1748302316481,0.71175118,109190.0,109180.0,0.00249971]
[1748302316698,0.41695908,109190.0,109180.0,0.00249971]
[1748302316906,0.50648059,109190.0,109180.0,0.00249971]
[1748302324898,0.43359097,109190.0,109180.0,0.00249971]
[1748302325092,0.61874946,109190.0,109180.0,0.00249971]
[1748302325346,0.34406946,109190.0,109180.0,0.00249971]
[1748302325533,0.29702861,109190.0,109180.0,0.32789181]
[1748302326616,0.29702861,109190.0,109180.0,0.66789181]
[1748302331931,0.29702861,109190.0,109180.0,0.37309971]
[1748302332160,0.29702861,109190.0,109180.0,0.66789181]
[1748302333847,0.39854249,109190.0,109180.0,0.34249971]
[1748302334062,0.43034249,109190.0,109180.0,0.00249971]
[1748302335332,0.40171823,109190.0,109180.0,0.00249971]
[1748302338094,0.67639823,109190.0,109180.0,0.00249971]
[1748302339782,0.60350861,109190.0,109180.0,0.00249971]
[1748302340290,0.32882861,109190.0,109180.0,0.00249971]
[1748302340528,0.60350861,109190.0,109180.0,0.29729181]
[1748302341455,0.60350861,109190.0,109180.0,0.00249971]
[1748302341601,0.58800861,109190.0,109180.0,0.00249971]
[1748302341813,0.61159805,109190.0,109180.0,0.00249971]
[1748302343887,0.59529805,109190.0,109180.0,0.00249971]
[1748302344051,0.57170861,109190.0,109180.0,0.00249971]
[1748302345101,0.60270861,109190.0,109180.0,0.00249971]
[1748302345726,0.32802861,109190.0,109180.0,0.00249971]
[1748302345949,0.60270861,109190.0,109180.0,0.00249971]
[1748302346852,0.32802861,109190.0,109180.0,0.00249971]
[1748302347086,0.57170861,109190.0,109180.0,0.00249971]
[1748302350165,0.57170861,109190.0,109180.0,0.29729181]
[1748302350706,0.59060817,109190.0,109180.0,0.29729181]
[1748302350915,0.57170861,109190.0,109180.0,0.29729181]
[1748302351845,0.29702861,109190.0,109180.0,0.32929181]
[1748302353417,0.29702861,109190.0,109180.0,0.67081181]
[1748302355489,0.29702861,109190.0,109180.0,0.681783]
[1748302356363,0.29702861,109190.0,109180.0,0.680263]
[1748302356598,0.01515767,109190.0,109180.0,2.53053437]
[1748302356808,0.006,109190.0,109180.0,2.53053437]
[1748302357026,0.006,109190.0,109180.0,2.55801137]
[1748302357267,0.0322925,109210.0,109200.0,0.58222169]
[1748302357487,0.05976124,109210.0,109200.0,2.98915989]
[1748302357708,0.06891715,109210.0,109200.0,2.98915989]
[1748302357932,0.07807365,109210.0,109200.0,2.9980912]
[1748302358151,0.07807432,109210.0,109200.0,2.9980912]
[1748302358363,0.07807483,109210.0,109200.0,2.9980912]
[1748302358587,0.07907483,109210.0,109200.0,2.9980912]
[1748302358806,0.06076158,109210.0,109200.0,2.9980912]
[1748302359016,0.05160508,109210.0,109200.0,2.9980912]
[1748302359222,0.06991825,109210.0,109200.0,2.9980912]
[1748302359429,0.06076158,109210.0,109200.0,2.9980912]
[1748302359897,0.07091816,109210.0,109200.0,3.0000912]
[1748302360124,0.04778233,109210.0,109200.0,3.0000912]
[1748302361114,0.002,109210.0,109200.0,3.30945568]
[1748302361334,0.01831031,109220.0,109210.0,0.5814024]
[1748302361542,0.02746572,109220.0,109210.0,4.0930416]
[1748302361972,0.02746572,109220.0,109210.0,4.4690786]
[1748302362186,0.03662138,109220.0,109210.0,4.4690786]
[1748302362605,0.03662138,109220.0,109210.0,4.48365098]
[1748302362811,0.0366213,109220.0,109210.0,4.48365098]
[1748302363027,0.04577696,109220.0,109210.0,4.48365098]
[1748302363441,0.21973903,109220.0,109210.0,3.8583749]
[1748302363646,0.20242804,109220.0,109210.0,1.93527648]
[1748302363864,0.20242804,109220.0,109210.0,1.94643315]
[1748302364085,0.20242804,109220.0,109210.0,1.93727648]
[1748302364758,0.20242804,109220.0,109210.0,1.94276427]
[1748302365092,0.19327238,109220.0,109210.0,1.9336076]
[1748302366443,0.19327238,109220.0,109210.0,1.94276427]
[1748302366860,0.19327238,109220.0,109210.0,1.9336076]
[1748302369260,0.19327238,109220.0,109210.0,1.4458446]
[1748302369465,0.19327238,109220.0,109210.0,1.8298566]
[1748302379756,0.19327238,109220.0,109210.0,1.0736446]
[1748302379976,0.28281794,109220.0,109210.0,1.9470496]
[1748302380425,0.28281794,109220.0,109210.0,1.8424496]
[1748302380657,0.28281794,109220.0,109210.0,1.7920596]
[1748302380878,0.28281794,109220.0,109210.0,1.6891246]
[1748302381340,0.28281794,109220.0,109210.0,1.7920496]
[1748302381562,0.28281794,109220.0,109210.0,1.6891246]
[1748302381774,0.28281794,109220.0,109210.0,1.7938806]
[1748302382387,0.28281794,109220.0,109210.0,1.6891246]
[1748302382953,0.31531794,109220.0,109210.0,1.0190846]
[1748302383163,0.31531794,109220.0,109210.0,1.2661756]
[1748302385294,0.31531794,109220.0,109210.0,0.6506956]
[1748302385502,0.31531794,109220.0,109210.0,1.2662156]
[1748302385852,0.31531794,109220.0,109210.0,0.6506956]
[1748302386062,0.31531794,109220.0,109210.0,1.2662156]
[1748302386313,0.28281794,109220.0,109210.0,1.2662156]
[1748302386812,0.28281794,109220.0,109210.0,1.26988448]
[1748302388199,0.28281794,109220.0,109210.0,1.28558448]
[1748302388414,0.28281794,109220.0,109210.0,1.26988448]
[1748302389248,0.28281794,109220.0,109210.0,1.28548448]
[1748302389672,0.28281794,109220.0,109210.0,1.26988448]
[1748302390261,0.28281794,109220.0,109210.0,2.47564139]
[1748302390262,0.29197343,109220.0,109210.0,2.47564139]
[1748302390461,0.01931065,109220.0,109210.0,2.78874598]
[1748302390827,0.22989435,109220.0,109210.0,2.78874615]
[1748302391046,0.02846631,109220.0,109210.0,2.82537223]
[1748302391222,0.03762205,109220.0,109210.0,2.53058013]
[1748302391477,0.22073928,109220.0,109210.0,2.50685167]
[1748302391908,0.21158387,109220.0,109210.0,2.49769542]
[1748302393183,0.21158387,109220.0,109210.0,2.50685167]
[1748302393602,0.21158387,109220.0,109210.0,2.49769542]
[1748302395042,0.21158387,109220.0,109210.0,2.50685158]
[1748302395261,0.21158387,109220.0,109210.0,2.49769542]
[1748302395693,0.02846723,109220.0,109210.0,2.80164368]
[1748302395943,0.21158387,109220.0,109210.0,2.80164368]
[1748302396142,0.01015541,109220.0,109210.0,2.81079976]
[1748302396353,0.02846615,109220.0,109210.0,2.81079976]
[1748302396567,0.02846615,109220.0,109210.0,2.51600766]
[1748302396972,0.03762189,109220.0,109210.0,2.51600766]
[1748302399494,0.04677772,109220.0,109210.0,2.51600766]
[1748302399724,0.2207392,109220.0,109210.0,2.49769542]
[1748302400431,0.2207392,109220.0,109210.0,2.89301542]
[1748302401572,0.21158379,109220.0,109210.0,2.89301542]
[1748302404583,0.01931132,109220.0,109210.0,2.9021715]
[1748302404762,0.001,109220.0,109210.0,3.1969636]
[1748302405225,0.001,109220.0,109210.0,3.3269636]
[1748302405446,0.01931057,109220.0,109210.0,3.3269636]
[1748302405658,0.01931057,109220.0,109210.0,3.3249636]
[1748302405876,0.02031057,109220.0,109210.0,3.3279636]
[1748302406093,0.01931057,109220.0,109210.0,3.1949636]
[1748302406324,0.01931057,109220.0,109210.0,3.1969636]
[1748302407322,0.02846589,109220.0,109210.0,3.22575361]
[1748302407843,0.20242779,109220.0,109210.0,0.79658001]
[1748302408084,0.23392779,109220.0,109210.0,1.33966211]
[1748302408305,0.23392779,109220.0,109210.0,1.7587131]
[1748302408739,0.21882779,109220.0,109210.0,1.76786977]
[1748302408954,0.01931115,109220.0,109210.0,1.97847251]
[1748302409162,0.01931073,109220.0,109210.0,1.98762859]
[1748302409367,0.02846639,109220.0,109210.0,2.02002859]
[1748302409553,0.03762213,109220.0,109210.0,2.02002859]
[1748302410091,0.02846623,109220.0,109210.0,2.31482069]
[1748302410303,0.02846615,109220.0,109210.0,2.31482069]
[1748302410718,0.03762181,109220.0,109210.0,2.31482069]
[1748302412102,0.04677755,109220.0,109210.0,2.31482069]
[1748302412631,0.04677755,109220.0,109210.0,2.02002859]
[1748302412853,0.04677822,109220.0,109210.0,2.02002859]
[1748302413358,0.04677822,109220.0,109210.0,1.74550859]
[1748302413680,0.03762281,109220.0,109210.0,2.01087251]
[1748302414353,0.03762281,109220.0,109210.0,2.02002859]
[1748302414877,0.03762281,109220.0,109210.0,2.31482069]
[1748302415045,0.03762281,109220.0,109210.0,2.03834051]
[1748302416007,0.02846723,109220.0,109210.0,2.03834051]
[1748302416219,0.21158387,109220.0,109210.0,2.03834051]
[1748302417112,0.0193114,109220.0,109210.0,2.34228869]
[1748302417316,0.02846723,109220.0,109210.0,2.34228869]
[1748302417522,0.02846723,109220.0,109210.0,2.33313261]
[1748302418330,0.02846723,109220.0,109210.0,2.34228877]
[1748302418536,0.01931107,109220.0,109210.0,2.34228818]
[1748302418745,0.03762264,109220.0,109210.0,2.3331321]
[1748302419886,0.03762264,109220.0,109210.0,2.36192211]
[1748302420205,0.02846681,109220.0,109210.0,2.36192211]
[1748302420453,0.02846681,109220.0,109210.0,2.37107819]
[1748302421376,0.01931057,109220.0,109210.0,2.37107819]
[1748302421730,0.02846615,109220.0,109210.0,2.37107819]
[1748302422357,0.02846615,109220.0,109210.0,2.50107819]
[1748302422578,0.02846615,109220.0,109210.0,2.37107819]
[1748302422862,0.01015516,109220.0,109210.0,2.37107819]
[1748302423012,0.02846581,109220.0,109210.0,2.37107819]
[1748302426974,0.0193104,109220.0,109210.0,2.37107819]
[1748302427120,0.01931057,109220.0,109210.0,2.37107819]
[1748302427317,0.01015516,109220.0,109210.0,2.37107819]
[1748302427551,0.01931057,109220.0,109210.0,2.37107819]
[1748302427833,0.01931057,109220.0,109210.0,2.07628609]
[1748302428044,0.01931057,109220.0,109210.0,2.04388609]
[1748302428853,0.01931057,109220.0,109210.0,2.07548609]
[1748302430732,0.01931057,109220.0,109210.0,2.37027819]
[1748302432813,0.02846615,109220.0,109210.0,2.37027819]
[1748302433572,0.001,109220.0,109210.0,2.37027819]
[1748302434036,0.01015507,109220.0,109210.0,2.37027819]
[1748302434246,0.002,109230.0,109220.0,0.58188311]
[1748302434472,0.002,109230.0,109220.0,5.19043231]
[1748302434682,0.002,109230.0,109220.0,5.23714787]
[1748302435114,0.002,109230.0,109220.0,5.26593788]
[1748302435557,0.00209154,109230.0,109220.0,5.26693788]
[1748302437858,0.00209154,109230.0,109220.0,5.39693788]
[1748302438236,0.00209154,109230.0,109220.0,5.26693788]
[1748302439638,0.00209154,109230.0,109220.0,5.29440088]
[1748302439970,0.00209154,109230.0,109220.0,5.64384088]
[1748302442583,0.01115256,109250.0,109240.0,0.55054456]
[1748302442786,0.002,109250.0,109240.0,5.46069376]
[1748302442991,0.002,109250.0,109240.0,5.49209376]
[1748302443193,0.01115256,109250.0,109240.0,5.51955376]
[1748302443797,0.03861099,109250.0,109240.0,5.53304377]
[1748302443981,0.0416109,109250.0,109240.0,5.49658877]
[1748302444283,0.0416109,109250.0,109240.0,4.34631577]
[1748302444521,0.08116396,109250.0,109240.0,3.37403377]
[1748302444700,0.08116455,109250.0,109240.0,3.29746477]
[1748302445187,0.07201191,109250.0,109240.0,3.29746477]
[1748302445392,0.06901191,109250.0,109240.0,3.24139677]
[1748302445682,0.06901191,109250.0,109240.0,3.24239677]
[1748302445971,0.06901191,109250.0,109240.0,3.21360676]
[1748302446184,0.23377257,109250.0,109240.0,1.4996011]
[1748302446403,0.23377257,109250.0,109240.0,2.20683036]
[1748302446616,0.23377257,109250.0,109240.0,2.21598434]
[1748302447267,0.23377257,109250.0,109240.0,2.22513807]
[1748302447473,0.02030621,109250.0,109240.0,2.23429163]
[1748302447694,0.20337257,109250.0,109240.0,2.51993017]
[1748302448116,0.02030537,109250.0,109240.0,2.56128373]
[1748302448323,0.02945835,109250.0,109240.0,2.56128373]
[1748302448616,0.02030537,109250.0,109240.0,2.56128373]
[1748302448834,0.01115256,109250.0,109240.0,2.56128373]
[1748302449027,0.02030529,109250.0,109240.0,2.56128373]
[1748302449251,0.02945818,109250.0,109240.0,2.56128373]
[1748302449852,0.02030529,109250.0,109240.0,2.56128373]
[1748302450098,0.02945827,109250.0,109240.0,2.56128373]
[1748302450290,0.02945818,109250.0,109240.0,2.56128373]
[1748302450614,0.02945818,109250.0,109240.0,2.95648373]
[1748302450827,0.02030529,109250.0,109240.0,2.95648373]